fUSD/lending_fUSD_20240821
["ID","MTS","AMOUNT","RATE_DAILY","PERIOD"]
[335475780,1724256635935,-500.0,0.00014244,2]
[335475781,1724256635948,-500.0,0.00014244,2]
[335475782,1724256635959,-2531.18,0.00014244,2]
[335475783,1724256635970,-759.67,0.00014244,2]
[335475784,1724256635982,-2498.48,0.00014244,2]
[335475785,1724256635993,-500.0,0.00014244,2]
[335475786,1724256636002,-500.0,0.00014244,2]
[335475787,1724256636013,-500.0,0.00014244,2]
[335475788,1724256636023,-1527.49,0.00014244,2]
[335475789,1724256636032,-2886.17,0.00014244,2]
[335475790,1724256636042,-500.0,0.00014244,2]
[335475791,1724256636051,-500.0,0.00014244,2]
[335475792,1724256636061,-1585.7,0.00014244,2]
[335475793,1724256636072,-500.0,0.00014244,2]
[335475794,1724256636081,-4165.88,0.00014244,2]
[335475795,1724256636091,-500.0,0.00014244,2]
[335475796,1724256636100,-15263.83,0.00014244,2]
[335475797,1724256636110,-1043.18,0.00014244,2]
[335475798,1724256636316,-1452.9,0.00014244,2]
[335475799,1724256636339,-1190.27,0.00014244,2]
[335475800,1724256636350,-2900.28,0.00014244,2]
[335475801,1724256636360,-3847.07,0.00014244,2]
[335475802,1724256636370,-3084.9,0.00014244,2]
[335475803,1724256636380,-2092.76,0.00014244,2]
[335475804,1724256636389,-2039.01,0.00014244,2]
[335475805,1724256636399,-740.78,0.00014244,2]
[335475806,1724256636409,-3824.95,0.00014244,2]
[335475807,1724256636419,-500.0,0.00014244,2]
[335475808,1724256636428,-500.0,0.00014244,2]
[335475809,1724256636437,-1501.76,0.00014244,2]
[335475810,1724256636447,-3170.14,0.00014244,2]
[335475811,1724256636456,-807.05,0.00014244,2]
[335475812,1724256636465,-500.0,0.00014244,2]
[335475813,1724256636474,-500.0,0.00014244,2]
[335475814,1724256636484,-608.56,0.00014244,2]
[335475815,1724256636493,-5685.89,0.00014244,2]
[335475816,1724256636503,-590.01,0.00014244,2]
[335475817,1724256636514,-746.2,0.00014244,2]
[335475818,1724256636523,-773.68,0.00014244,2]
[335475819,1724256636532,-500.0,0.00014244,2]
[335475820,1724256636542,-3049.25,0.00014244,2]
[335475821,1724256636551,-693.52,0.00014244,2]
[335475822,1724256636560,-500.0,0.00014244,2]
[335475823,1724256636569,-4151.66,0.00014244,2]
[335475824,1724256636578,-500.0,0.00014244,2]
[335475825,1724256636588,-2258.44,0.00014244,2]
[335475826,1724256636597,-626.73,0.00014244,2]
[335475827,1724256636606,-1399.92,0.00014244,2]
[335475828,1724256636614,-500.0,0.00014244,2]
[335475829,1724256636623,-13576.24,0.00014244,2]
[335475830,1724256636633,-500.0,0.00014244,2]
[335475831,1724256636642,-500.0,0.00014244,2]
[335475832,1724256636651,-9124.29,0.00014244,2]
[335475833,1724256636660,-500.0,0.00014244,2]
[335475834,1724256636669,-654.24,0.00014244,2]
[335475835,1724256636678,-500.0,0.00014244,2]
[335475836,1724256636687,-601.35,0.00014244,2]
[335475837,1724256636695,-1306.73,0.00014244,2]
[335475838,1724256636705,-818.53,0.00014244,2]
[335475839,1724256636713,-553.82,0.00014244,2]
[335475840,1724256636722,-618.2,0.00014244,2]
[335475841,1724256636732,-5995.67,0.00014244,2]
[335475842,1724256636741,-1020.07,0.00014244,2]
[335475843,1724256636750,-500.0,0.00014244,2]
[335475844,1724256636760,-500.0,0.00014244,2]
[335475845,1724256636769,-626.15574016,0.00014244,2]
[335475846,1724256636778,-3328.31,0.00014244,2]
[335475847,1724256636788,-500.0,0.00014244,2]
[335475848,1724256636797,-500.0,0.00014244,2]
[335475849,1724256636806,-964.1,0.00014244,2]
[335475850,1724256636815,-500.0,0.00014244,2]
[335475851,1724256636824,-1814.12,0.00014244,2]
[335475852,1724256636833,-1938.2,0.00014244,2]
[335475853,1724256636843,-500.0,0.00014244,2]
[335475854,1724256636852,-500.0,0.00014244,2]
[335475855,1724256636861,-2253.96,0.00014244,2]
[335475856,1724256636870,-500.0,0.00014244,2]
[335475857,1724256636879,-1388.09,0.00014244,2]
[335475858,1724256636888,-2139.97,0.00014244,2]
[335475859,1724256636898,-500.0,0.00014244,2]
[335475860,1724256636907,-1565.25,0.00014244,2]
[335475861,1724256636916,-657.06,0.00014244,2]
[335475862,1724256636924,-878.72,0.00014244,2]
[335475863,1724256636934,-1934.41,0.00014244,2]
[335475864,1724256636943,-696.72,0.00014244,2]
[335475865,1724256636952,-500.0,0.00014244,2]
[335475866,1724256636961,-2929.56,0.00014244,2]
[335475867,1724256636970,-1317.36,0.00014244,2]
[335475868,1724256636981,-988.09,0.00014244,2]
[335475869,1724256636991,-3870.23,0.00014244,2]
[335475870,1724256636999,-13173.13,0.00014244,2]
[335475871,1724256637009,-500.0,0.00014244,2]
[335475872,1724256637018,-500.0,0.00014244,2]
[335475873,1724256637027,-1003.0,0.00014244,2]
[335475874,1724256637036,-500.0,0.00014244,2]
[335475875,1724256637046,-1586.95,0.00014244,2]
[335475876,1724256637055,-500.0,0.00014245,2]
[335475877,1724256637063,-374.33256814,0.00014245,2]
[335475878,1724256637072,-554.93488,0.00014245,2]
[335475879,1724256637081,-500.0,0.00014245,2]
[335475880,1724256637091,-500.0,0.00014245,2]
[335475881,1724256637100,-500.0,0.00014245,2]
[335475882,1724256637110,-500.0,0.00014245,2]
[335475883,1724256637120,-500.0,0.00014245,2]
[335475884,1724256637129,-500.0,0.00014245,2]
[335475885,1724256637138,-500.0,0.00014245,2]
[335475886,1724256637147,-224.41356406,0.00014245,2]
[335475887,1724256637157,-500.0,0.00014245,2]
[335475888,1724256637166,-500.0,0.00014245,2]
[335475889,1724256637175,-500.0,0.00014245,2]
[335475890,1724256637184,-500.0,0.00014245,2]
[335475891,1724256637193,-500.0,0.00014245,2]
[335475892,1724256637203,-500.0,0.00014245,2]
[335475893,1724256637212,-632.74,0.00014245,2]
[335475894,1724256637221,-500.0,0.00014245,2]
[335475895,1724256637230,-500.0,0.00014245,2]
[335475896,1724256637239,-562.22,0.00014245,2]
[335475897,1724256637249,-4396.83,0.00014245,2]
[335475898,1724256637259,-500.0,0.00014245,2]
[335475899,1724256637269,-500.0,0.00014245,2]
[335475900,1724256637278,-500.0,0.00014245,2]
[335475901,1724256637287,-3064.41,0.00014245,2]
[335475902,1724256637296,-1479.27,0.00014245,2]
[335475903,1724256637305,-500.0,0.00014245,2]
[335475904,1724256637314,-1438.4,0.00014245,2]
[335475905,1724256637323,-6374.46,0.00014245,2]
[335475906,1724256637334,-1199.04469426,0.00014245,2]
[335475907,1724256637355,-355.41834579,0.00014245,2]
[335475908,1724256637366,-814.71695995,0.00014245,2]
[335475909,1724256637377,-950.58338151,0.00014245,2]
[335475910,1724256637387,-1127.61331614,0.00014245,2]
[335475924,1724256638303,-2364.01451426,0.00010993,2]
[335475926,1724256638314,-724.97184001,0.00010993,2]
[335476062,1724256650170,-868.59537892,0.00010993,2]
[335476063,1724256650181,-5320.42190386,0.00010993,2]
[335476064,1724256650191,-2539.20330235,0.00014245,2]
[335476065,1724256650201,-9753.51,0.00014245,2]
[335476066,1724256650210,-1461.60337246,0.00014245,2]
[335476067,1724256650221,-1711.69662754,0.00014245,2]
[335476068,1724256650231,-997.79001205,0.00014245,2]
[335476069,1724256650243,-2309.53998795,0.00014245,2]
[335476070,1724256650252,-717.13,0.00014245,2]
[335476071,1724256650261,-500.0,0.00014245,2]
[335476072,1724256650270,-580.83,0.00014245,2]
[335476073,1724256650281,-824.21,0.00014245,2]
[335476074,1724256650290,-1682.1,0.00014245,2]
[335476075,1724256650299,-4881.52,0.00014245,2]
[335476076,1724256650308,-2142.18,0.00014245,2]
[335476077,1724256650317,-500.0,0.00014245,2]
[335476078,1724256650327,-9342.02,0.00014245,2]
[335476079,1724256650340,-561.31,0.00014245,2]
[335476080,1724256650350,-8032.83907542,0.00014245,2]
[335476081,1724256650365,-11129.9312,0.00014245,2]
[335476082,1724256650376,-2603.10643675,0.00014245,2]
[335476083,1724256650387,-421.78588728,0.00014245,2]
[335476084,1724256650402,-1302.59799743,0.00014245,2]
[335476085,1724256650414,-435.1571579,0.00014245,2]
[335476086,1724256650425,-756.50129239,0.00014245,2]
[335476087,1724256650436,-242.30095283,0.00014245,2]
[335476088,1724256650445,-500.0,0.00014245,2]
[335476089,1724256650454,-551.28,0.00014245,2]
[335476090,1724256650463,-99.83158694,0.00014245,2]
[335476091,1724256650473,-425.4,0.00014245,2]
[335476092,1724256650488,-745.04841306,0.00014245,2]
[335476093,1724256650497,-500.0,0.00014246,2]
[335476094,1724256650507,-313.99371268,0.00014246,2]
[335476095,1724256650518,-186.00628732,0.00014246,2]
[335476096,1724256650529,-500.0,0.00014246,2]
[335476097,1724256650539,-2035.48,0.00014246,2]
[335476098,1724256650547,-971.14,0.00014246,2]
[335476099,1724256650557,-504.19,0.00014246,2]
[335476100,1724256650566,-500.0,0.00014246,2]
[335476101,1724256650575,-2171.46,0.00014246,2]
[335476102,1724256650584,-500.0,0.00014246,2]
[335476103,1724256650593,-500.0,0.00014246,2]
[335476104,1724256650602,-983.56,0.00014246,2]
[335476105,1724256650611,-500.0,0.00014246,2]
[335476106,1724256650620,-412.07647225,0.00014246,2]
[335476107,1724256650629,-500.0,0.00014246,2]
[335476108,1724256650638,-500.0,0.00014246,2]
[335476109,1724256650646,-500.0,0.00014246,2]
[335476110,1724256650655,-500.0,0.00014246,2]
[335476111,1724256650664,-500.0,0.00014246,2]
[335476112,1724256650673,-500.0,0.00014246,2]
[335476113,1724256650682,-2411.52,0.00014246,2]
[335476114,1724256650691,-4674.31031746,0.00014301,2]
[335476115,1724256650700,-175.14,0.00014378,2]
[335476116,1724256650709,-271.0,0.0001438,2]
[335476117,1724256650718,-794.0,0.00014414,2]
[335476118,1724256650727,-168.26330186,0.00014418,2]
[335476119,1724256650736,-207.65578001,0.00014418,2]
[335476120,1724256650745,-1986.1602722,0.00014418,2]
[335476121,1724256650754,-200.0,0.00014473,2]
[335476122,1724256650763,-200.0,0.00014473,2]
[335476123,1724256650772,-150.0,0.00014493,2]
[335476124,1724256650781,-189.78744056,0.00014499,2]
[335476125,1724256650790,-800.0,0.000145,2]
[335476126,1724256650799,-137629.28576,0.000145,5]
[335476127,1724256651251,-981.13708355,0.000145,5]
[335476128,1724256651263,-66011.48911492,0.000145,5]
[335476129,1724256651277,-18691.22627551,0.000145,5]
[335476130,1724256651288,-969.65529697,0.000145,5]
[335476131,1724256651300,-3015.37057037,0.000145,5]
[335476132,1724256651312,-1458.91842534,0.000145,5]
[335476133,1724256651324,-6007.80077973,0.000145,5]
[335476134,1724256651340,-2925.98626232,0.000145,5]
[335476135,1724256651351,-998.486475,0.000145,5]
[335476136,1724256651374,-12535.12866486,0.000145,5]
[335476137,1724256651385,-4125.98200796,0.000145,5]
[335476138,1724256651396,-79453.25159359,0.000145,5]
[335476139,1724256651407,-391.951146,0.000145,5]
[335476140,1724256651419,-337.94,0.000145,5]
[335476141,1724256651431,-894.865,0.000145,5]
[335476142,1724256652063,-817.0,0.00013959,2]
[335476143,1724256652072,-485.45817032,0.0001397,2]
[335476144,1724256652082,-500.0,0.0001397,2]
[335476145,1724256652091,-500.0,0.0001397,2]
[335476146,1724256652100,-248.6918066,0.0001397,2]
[335476147,1724256652111,-251.3081934,0.0001397,2]
[335476148,1724256652120,-500.0,0.0001397,2]
[335476149,1724256652129,-210.19735433,0.0001397,2]
[335476150,1724256652138,-176843.74327326,0.000145,5]
[335476151,1724256652148,-636.49603942,0.000145,5]
[335476152,1724256652159,-1282.18611694,0.000145,5]
[335476153,1724256652170,-1014842.33897927,0.000145,5]
[335476154,1724256652179,-500.0,0.00014518,2]
[335476155,1724256652188,-675.43,0.00014518,2]
[335476156,1724256652197,-561.91304516,0.00014518,2]
[335476157,1724256652205,-500.0,0.00014518,2]
[335476158,1724256652214,-574.3,0.00014518,2]
[335476159,1724256652223,-664.08,0.00014518,2]
[335476160,1724256652232,-1060.99,0.00014518,2]
[335476161,1724256652241,-500.0,0.00014518,2]
[335476162,1724256652249,-500.0,0.00014518,2]
[335476163,1724256652258,-1006.07,0.00014518,2]
[335476164,1724256652267,-1303.23,0.00014518,2]
[335476165,1724256652278,-513.91,0.00014518,2]
[335476166,1724256652287,-500.0,0.00014518,2]
[335476167,1724256652296,-1131.55,0.00014518,2]
[335476168,1724256652305,-2437.4,0.00014518,2]
[335476169,1724256652314,-500.0,0.00014518,2]
[335476170,1724256652323,-500.0,0.00014518,2]
[335476171,1724256652334,-562.22,0.00014518,2]
[335476172,1724256652344,-500.0,0.00014518,2]
[335476173,1724256652354,-500.0,0.00014518,2]
[335476174,1724256652363,-500.0,0.00014518,2]
[335476175,1724256652371,-2531.18,0.00014518,2]
[335476176,1724256652382,-759.67,0.00014518,2]
[335476177,1724256652391,-2498.48,0.00014518,2]
[335476178,1724256652400,-545.39929216,0.00014518,2]
[335476179,1724256652408,-500.0,0.00014518,2]
[335476180,1724256652420,-500.0,0.00014518,2]
[335476181,1724256652430,-1527.49,0.00014518,2]
[335476182,1724256652440,-320.18033642,0.00014518,2]
[335476183,1724256652449,-500.0,0.00014518,2]
[335476184,1724256652457,-500.0,0.00014518,2]
[335476185,1724256652466,-500.0,0.00014518,2]
[335476186,1724256652475,-15263.83,0.00014518,2]
[335476187,1724256652484,-1452.9,0.00014518,2]
[335476188,1724256652493,-1190.27,0.00014518,2]
[335476189,1724256652502,-2900.28,0.00014518,2]
[335476190,1724256652511,-3847.07,0.00014518,2]
[335476191,1724256652520,-2039.01,0.00014518,2]
[335476192,1724256652531,-2092.76,0.00014518,2]
[335476193,1724256652540,-3824.95,0.00014518,2]
[335476194,1724256652549,-500.0,0.00014518,2]
[335476195,1724256652558,-500.0,0.00014518,2]
[335476196,1724256652567,-1501.76,0.00014518,2]
[335476197,1724256652576,-3170.14,0.00014518,2]
[335476198,1724256652585,-807.05,0.00014518,2]
[335476199,1724256652594,-500.0,0.00014518,2]
[335476200,1724256652603,-500.0,0.00014518,2]
[335476201,1724256652612,-608.56,0.00014518,2]
[335476202,1724256652622,-5685.89,0.00014518,2]
[335476203,1724256652632,-590.01,0.00014518,2]
[335476204,1724256652641,-746.2,0.00014518,2]
[335476205,1724256652650,-773.68,0.00014518,2]
[335476206,1724256652660,-500.0,0.00014518,2]
[335476207,1724256652669,-3049.25,0.00014518,2]
[335476208,1724256652679,-693.52,0.00014518,2]
[335476209,1724256652688,-500.0,0.00014518,2]
[335476210,1724256652697,-4151.66,0.00014518,2]
[335476211,1724256652709,-500.0,0.00014518,2]
[335476212,1724256652718,-2258.44,0.00014518,2]
[335476213,1724256652727,-626.73,0.00014518,2]
[335476214,1724256652736,-1399.92,0.00014518,2]
[335476215,1724256652744,-500.0,0.00014518,2]
[335476216,1724256652753,-13576.24,0.00014518,2]
[335476217,1724256652762,-500.0,0.00014518,2]
[335476218,1724256652771,-500.0,0.00014518,2]
[335476219,1724256652782,-9124.29,0.00014518,2]
[335476220,1724256652791,-500.0,0.00014518,2]
[335476221,1724256652799,-654.24,0.00014518,2]
[335476222,1724256652808,-535.07277397,0.00014518,2]
[335476223,1724256652817,-601.35,0.00014518,2]
[335476224,1724256652826,-1306.73,0.00014518,2]
[335476225,1724256652835,-818.53,0.00014518,2]
[335476226,1724256652844,-553.82,0.00014518,2]
[335476227,1724256652853,-618.2,0.00014518,2]
[335476228,1724256652863,-5995.67,0.00014518,2]
[335476229,1724256652872,-1020.07,0.00014518,2]
[335476230,1724256652881,-500.0,0.00014518,2]
[335476231,1724256652891,-500.0,0.00014518,2]
[335476232,1724256652900,-3328.31,0.00014518,2]
[335476233,1724256652909,-500.0,0.00014518,2]
[335476234,1724256652919,-500.0,0.00014518,2]
[335476235,1724256652927,-964.1,0.00014518,2]
[335476236,1724256652936,-1814.12,0.00014518,2]
[335476237,1724256652946,-500.0,0.00014518,2]
[335476238,1724256652955,-1938.2,0.00014518,2]
[335476239,1724256652966,-500.0,0.00014518,2]
[335476240,1724256652975,-500.0,0.00014518,2]
[335476241,1724256652984,-2253.96,0.00014518,2]
[335476242,1724256652993,-500.0,0.00014518,2]
[335476243,1724256653002,-1388.09,0.00014518,2]
[335476244,1724256653011,-2139.97,0.00014518,2]
[335476245,1724256653020,-500.0,0.00014518,2]
[335476246,1724256653030,-1565.25,0.00014518,2]
[335476247,1724256653039,-657.06,0.00014518,2]
[335476248,1724256653048,-878.72,0.00014518,2]
[335476249,1724256653057,-1934.41,0.00014518,2]
[335476250,1724256653066,-696.72,0.00014518,2]
[335476251,1724256653075,-500.0,0.00014518,2]
[335476252,1724256653085,-2929.56,0.00014518,2]
[335476253,1724256653094,-1317.36,0.00014518,2]
[335476254,1724256653103,-988.09,0.00014518,2]
[335476255,1724256653112,-3870.23,0.00014518,2]
[335476256,1724256653121,-13173.13,0.00014518,2]
[335476257,1724256653130,-500.0,0.00014518,2]
[335476258,1724256653140,-500.0,0.00014518,2]
[335476259,1724256653149,-1003.0,0.00014518,2]
[335476260,1724256653158,-500.0,0.00014518,2]
[335476261,1724256653167,-1586.95,0.00014518,2]
[335476262,1724256653176,-500.0,0.00014519,2]
[335476263,1724256653185,-500.0,0.00014519,2]
[335476264,1724256653194,-500.0,0.00014519,2]
[335476265,1724256653203,-370.61144982,0.00014519,2]
[335476266,1724256653213,-500.0,0.00014519,2]
[335476267,1724256653222,-500.0,0.00014519,2]
[335476268,1724256653231,-500.0,0.00014519,2]
[335476269,1724256653242,-500.0,0.00014519,2]
[335476270,1724256653252,-500.0,0.00014519,2]
[335476271,1724256653262,-500.0,0.00014519,2]
[335476272,1724256653271,-500.0,0.00014519,2]
[335476273,1724256653281,-500.0,0.00014519,2]
[335476274,1724256653290,-500.0,0.00014519,2]
[335476275,1724256653299,-500.0,0.00014519,2]
[335476276,1724256653308,-632.74,0.00014519,2]
[335476277,1724256653317,-500.0,0.00014519,2]
[335476278,1724256653327,-500.0,0.00014519,2]
[335476279,1724256653340,-562.22,0.00014519,2]
[335476280,1724256653350,-4396.83,0.00014519,2]
[335476281,1724256653359,-500.0,0.00014519,2]
[335476282,1724256653368,-500.0,0.00014519,2]
[335476283,1724256653378,-500.0,0.00014519,2]
[335476284,1724256653389,-500.0,0.00014519,2]
[335476285,1724256653397,-1438.4,0.00014519,2]
[335476286,1724256653407,-6374.46,0.00014519,2]
[335476287,1724256653418,-2369.18,0.00014519,2]
[335476288,1724256653427,-4617.4,0.00014519,2]
[335476289,1724256653436,-9753.51,0.00014519,2]
[335476290,1724256653445,-3173.3,0.00014519,2]
[335476291,1724256653453,-3307.33,0.00014519,2]
[335476292,1724256653463,-717.13,0.00014519,2]
[335476293,1724256653472,-500.0,0.00014519,2]
[335476294,1724256653481,-580.83,0.00014519,2]
[335476295,1724256653490,-824.21,0.00014519,2]
[335476296,1724256653499,-1682.1,0.00014519,2]
[335476297,1724256653508,-4881.52,0.00014519,2]
[335476298,1724256653525,-2142.18,0.00014519,2]
[335476299,1724256653536,-500.0,0.00014519,2]
[335476300,1724256653545,-9342.02,0.00014519,2]
[335476301,1724256653556,-561.31,0.00014519,2]
[335476302,1724256653565,-24924.22,0.00014519,2]
[335476303,1724256653574,-500.0,0.00014519,2]
[335476304,1724256653583,-551.28,0.00014519,2]
[335476305,1724256653592,-1270.28,0.00014519,2]
[335476306,1724256653601,-500.0,0.0001452,2]
[335476307,1724256653610,-500.0,0.0001452,2]
[335476308,1724256653619,-2035.48,0.0001452,2]
[335476309,1724256653628,-2171.46,0.0001452,2]
[335476310,1724256653776,-502.23608199,0.0001452,2]
[335476311,1724256653786,-500.0,0.0001452,2]
[335476312,1724256653796,-983.56,0.0001452,2]
[335476313,1724256653805,-500.0,0.0001452,2]
[335476314,1724256653814,-500.0,0.0001452,2]
[335476315,1724256653823,-500.0,0.0001452,2]
[335476316,1724256653832,-500.0,0.0001452,2]
[335476317,1724256653841,-500.0,0.0001452,2]
[335476318,1724256653850,-500.0,0.0001452,2]
[335476319,1724256653859,-500.0,0.0001452,2]
[335476320,1724256653869,-2411.52,0.0001452,2]
[335476321,1724256653878,-290.12430836,0.00014693,2]
[335476322,1724256653891,-1019.21609164,0.00014693,2]
[335476323,1724256653900,-2952.8832012,0.00014694,2]
[335476324,1724256653919,-1419.73491959,0.00014694,2]
[335476325,1724256653928,-1181.8267,0.000147,2]
[335476326,1724256653937,-3378.28116378,0.000147,2]
[335476327,1724256653948,-211.24273622,0.000147,2]
[335476328,1724256653958,-155.46884935,0.000147,2]
[335476329,1724256653969,-115.53115065,0.000147,2]
[335476330,1724256653978,-498.76059914,0.00014736,2]
[335476331,1724256653989,-977.79543901,0.00014736,2]
[335476332,1724256654000,-3197.75427931,0.00014736,2]
[335476333,1724256654009,-3353.35258449,0.00014755,10]
[335476334,1724256654018,-408.54,0.00014772,2]
[335476335,1724256654029,-200.0,0.00014773,2]
[335476336,1724256654038,-380.3080145,0.0001479,2]
[335476337,1724256654047,-2359.5873742,0.0001479,2]
[335476338,1724256654056,-2850.4304883,0.0001479,2]
[335476339,1724256654066,-366.4112376,0.0001479,2]
[335476340,1724256654076,-287.1304846,0.0001479,2]
[335476341,1724256654091,-500.0,0.00014792,2]
[335476342,1724256654100,-675.43,0.00014792,2]
[335476343,1724256654109,-500.0,0.00014792,2]
[335476344,1724256654119,-574.3,0.00014792,2]
[335476345,1724256654128,-664.08,0.00014792,2]
[335476346,1724256654137,-1060.99,0.00014792,2]
[335476347,1724256654149,-500.0,0.00014792,2]
[335476348,1724256654158,-500.0,0.00014792,2]
[335476349,1724256654168,-1006.07,0.00014792,2]
[335476350,1724256654178,-1184.58629165,0.00014792,2]
[335476351,1724256654189,-118.64370835,0.00014792,2]
[335476352,1724256654199,-513.91,0.00014792,2]
[335476353,1724256654208,-500.0,0.00014792,2]
[335476354,1724256654217,-1116.40303557,0.00014792,2]
[335476355,1724256654228,-15.14696443,0.00014792,2]
[335476356,1724256654237,-2437.4,0.00014792,2]
[335476357,1724256654246,-500.0,0.00014792,2]
[335476358,1724256654256,-500.0,0.00014792,2]
[335476359,1724256654265,-562.22,0.00014792,2]
[335476360,1724256654275,-500.0,0.00014792,2]
[335476361,1724256654284,-500.0,0.00014792,2]
[335476362,1724256654293,-500.0,0.00014792,2]
[335476363,1724256654302,-2531.18,0.00014792,2]
[335476364,1724256654312,-759.67,0.00014792,2]
[335476365,1724256654321,-18.37650509,0.00014792,2]
[335476366,1724256654334,-343.64044877,0.00014792,2]
[335476367,1724256654346,-265.9966997,0.00014792,2]
[335476368,1724256655707,-1377.53454,0.00014792,2]
[335476369,1724256655720,-492.93180644,0.00014792,2]
[335476370,1724256655732,-90.44799065,0.00014792,2]
[335476371,1724256656077,-409.55200935,0.00014792,2]
[335476372,1724256656087,-500.0,0.00014792,2]
[335476373,1724256656097,-959.81428285,0.00014792,2]
[335476374,1724256656133,-567.67571715,0.00014792,2]
[335476375,1724256656142,-473.00413681,0.00014792,2]
[335476376,1724256656154,-26.99586319,0.00014792,2]
[335476377,1724256656163,-500.0,0.00014792,2]
[335476378,1724256656172,-253.79572633,0.00014792,2]
[335476379,1724256656183,-246.20427367,0.00014792,2]
[335476380,1724256656193,-157.32959466,0.00014792,2]
[335476381,1724256656205,-1032.94040534,0.00014792,2]
[335476382,1724256656215,-2900.28,0.00014792,2]
[335476383,1724256656225,-438.58759466,0.00014792,2]
[335476384,1724256656240,-1321.4022825,0.00014792,2]
[335476385,1724256656251,-2087.08012284,0.00014792,2]
[335476386,1724256656261,-307.6682293,0.00014792,2]
[335476387,1724256656273,-586.12551802,0.00014792,2]
[335476388,1724256656286,-1145.21625268,0.00014792,2]
[335476389,1724256656296,-2092.76,0.00014792,2]
[335476390,1724256656306,-3134.45815252,0.00014792,2]
[335476391,1724256656317,-611.804,0.00014792,2]
[335476392,1724256656330,-78.68784748,0.00014792,2]
[335476393,1724256656343,-500.0,0.00014792,2]
[335476394,1724256656353,-13.51635134,0.00014792,2]
[335476395,1724256656365,-486.48364866,0.00014792,2]
[335476396,1724256656375,-44.11635134,0.00014792,2]
[335476401,1724257693110,-3069.927927,9.997e-05,2]
[335476402,1724257693174,-2676.10284794,9.997e-05,2]
[335476403,1724257693202,-206.84541762,9.999e-05,2]
[335476408,1724257718223,-3188.98545085,9.999e-05,2]
[335476415,1724257718540,-1948.83658226,9.999e-05,2]
[335476416,1724257743221,-3291.74189151,9.988e-05,2]
[335476419,1724257743279,-3291.74189151,9.988e-05,2]
[335476422,1724257743339,-802.57709991,9.988e-05,2]
[335476423,1724257759585,150.0,8.492e-05,2]
[335476424,1724257759607,150.0,8.492e-05,2]
[335476425,1724257759629,81.92,8.492e-05,2]
[335476426,1724257761018,-198.74536081,9.988e-05,2]
[335476445,1724257831895,-150.0,9.987e-05,2]
[335476446,1724257831906,-4864.54145317,9.988e-05,2]
[335476447,1724257831953,-3987.45282922,9.988e-05,2]
[335476448,1724257831965,-19098.61857787,9.988e-05,2]
[335476449,1724257831976,-432.92,9.988e-05,2]
[335476450,1724257831988,-56968.91074779,9.988e-05,2]
[335476451,1724257831999,-3164.75000067,9.988e-05,2]
[335476452,1724257832010,-389.97098568,9.988e-05,2]
[335476453,1724257832035,-500.0,9.988e-05,2]
[335476454,1724257832046,-1521.76221221,9.988e-05,2]
[335476455,1724257832076,-347.96815075,9.988e-05,2]
[335476456,1724257832088,-24609.85560969,9.988e-05,2]
[335476457,1724257832097,-1487.64811096,0.0001,2]
[335476458,1724257832107,-164.37647516,0.0001,2]
[335476459,1724257832118,-685.19969759,0.0001,2]
[335476460,1724257832129,-653.7077551,0.00010026,2]
[335476461,1724257832138,-400.0,0.00010325,2]
[335476462,1724257832148,-193.49,0.00010398,2]
[335476463,1724257832157,-1406.83,0.00010653,2]
[335476464,1724257832167,-12597.8100575,0.00010653,2]